fUST/lending_fUST_20241111
["ID","MTS","AMOUNT","RATE_DAILY","PERIOD"]
[341925292,1731292241500,-630.37665269,0.00024657,2]
[341925293,1731292241509,-500.0,0.00024657,2]
[341925294,1731292241519,-500.0,0.00024657,2]
[341925295,1731292241528,-500.0,0.00024657,2]
[341925296,1731292241536,-506.39437847,0.00024657,2]
[341925297,1731292241545,-501.27691085,0.00024657,2]
[341925298,1731292241555,-500.0,0.00024657,2]
[341925299,1731292241564,-510.60287665,0.00024657,2]
[341925300,1731292241573,-509.34217113,0.00024657,2]
[341925301,1731292241582,-500.0,0.00024657,2]
[341925302,1731292241591,-507.04834921,0.00024657,2]
[341925303,1731292241600,-621.73,0.00024657,2]
[341925304,1731292241609,-500.0,0.00024657,2]
[341925305,1731292241618,-518.60909558,0.00024657,2]
[341925306,1731292241629,-67.20233344,0.00024657,2]
[341925307,1731292241649,-1092.28,0.00024657,2]
[341925308,1731292241733,-1318.78766656,0.00024657,2]
[341925309,1731292241743,-594.05880942,0.00024657,2]
[341925310,1731292241753,-516.48352643,0.00024657,2]
[341925311,1731292241763,-500.0,0.00024657,2]
[341925312,1731292241772,-503.38910912,0.00024657,2]
[341925313,1731292241782,-506.61729323,0.00024657,2]
[341925314,1731292241792,-508.9187666,0.00024657,2]
[341925315,1731292241802,-1189.06,0.00024657,2]
[341925316,1731292241811,-500.0,0.00024657,2]
[341925317,1731292241821,-613.90831994,0.00024657,2]
[341925318,1731292241990,-500.0,0.00024657,2]
[341925319,1731292242000,-509.00451739,0.00024657,2]
[341925320,1731292242009,-505.88694384,0.00024657,2]
[341925321,1731292242018,-503.45421602,0.00024657,2]
[341925322,1731292242027,-156.938223,0.00024657,7]
[341925323,1731292242037,-501.48045764,0.00024657,2]
[341925324,1731292242046,-159.18907868,0.00024657,2]
[341925325,1731292242055,-508.75823814,0.00024657,2]
[341925326,1731292242064,-896.34,0.00024657,2]
[341925327,1731292242074,-615.84544868,0.00024657,2]
[341925328,1731292242083,-506.68026345,0.00024657,2]
[341925329,1731292242092,-500.0,0.00024657,2]
[341925330,1731292242101,-527.41358712,0.00024657,2]
[341925331,1731292242111,-1149.11,0.00024657,2]
[341925332,1731292242119,-500.0,0.00024657,2]
[341925333,1731292242129,-833.33,0.00024657,2]
[341925334,1731292242138,-500.0,0.00024657,2]
[341925335,1731292242147,-500.0,0.00024657,2]
[341925336,1731292242158,-163.59198884,0.00024657,2]
[341925337,1731292242167,-3338.89,0.00024657,2]
[341925338,1731292242176,-151.0,0.00024657,7]
[341925339,1731292242185,-500.0,0.00024657,2]
[341925340,1731292242194,-500.0,0.00024657,2]
[341925341,1731292242203,-500.0,0.00024657,2]
[341925342,1731292242212,-521.3,0.00024657,2]
[341925343,1731292242221,-151.0,0.00024657,7]
[341925344,1731292242230,-500.0,0.00024657,2]
[341925345,1731292242239,-151.0,0.00024657,7]
[341925346,1731292242248,-557.62485447,0.00024657,2]
[341925347,1731292242257,-500.0,0.00024657,2]
[341925348,1731292242266,-500.0,0.00024657,2]
[341925349,1731292242277,-500.0,0.00024657,2]
[341925350,1731292242286,-182.973051,0.00024657,7]
[341925351,1731292242295,-500.0,0.00024657,2]
[341925352,1731292242304,-279.7205025,0.00024657,2]
[341925404,1731292243814,-220.2794975,0.00024657,2]
[341925405,1731292243824,-500.0,0.00024657,2]
[341925406,1731292243834,-645.78,0.00024657,2]
[341925407,1731292243843,-500.0,0.00024657,2]
[341925408,1731292243852,-500.0,0.00024657,2]
[341925409,1731292243862,-48.89036902,0.00024657,2]
[341925410,1731292243873,-498.83566385,0.00024657,2]
[341925411,1731292243884,-500.0,0.00024657,2]
[341925412,1731292243893,-538.04045374,0.00024657,2]
[341925413,1731292243902,-507.59059918,0.00024657,2]
[341925414,1731292243915,-505.69156202,0.00024657,2]
[341925415,1731292243924,-67.72734789,0.00024657,2]
[341925416,1731292243935,-443.7140885,0.00024657,2]
[341925417,1731292243945,-463.41694243,0.00024657,2]
[341925418,1731292243954,-2960.5,0.00024657,2]
[341925419,1731292243963,-500.0,0.00024657,2]
[341925420,1731292243973,-507.00248858,0.00024657,2]
[341925421,1731292243982,-583.27476077,0.00024657,2]
[341925422,1731292243991,-1304.25722894,0.00024657,2]
[341925423,1731292244003,-8559.59297454,0.00024657,2]
[341925444,1731292246565,-500.0,0.00024657,2]
[341925452,1731292571539,1169.27083333,0.00020844,2]
[341925453,1731292853797,165.176854,0.00013973,2]
[341925455,1731293209158,-151.579818,0.00020844,2]
[341925460,1731293383874,-860.63931864,0.00029041,120]
[341925461,1731293383901,-158.326,0.0002978,120]
[341925462,1731293383927,-1329.11,0.00030136,120]
[341925463,1731293383950,-1329.11,0.00030136,120]
[341925464,1731293383970,-1329.11,0.00030136,120]
[341925465,1731293383990,-1329.11,0.00030136,120]
[341925466,1731293384011,-1329.11,0.00030136,120]
[341925467,1731293384032,-1329.11,0.00030136,120]
[341925468,1731293384054,-145.73536272,0.00030136,120]
[341925500,1731293438902,-860.90741864,0.00020844,2]
[341925513,1731293443831,-156.78359669,0.00020844,2]
[341925514,1731293443840,-273.0215,0.00021631,2]
[341925515,1731293443849,-300.0,0.00023102,2]
[341925516,1731293443860,-300.0,0.00023102,2]
[341925517,1731293443870,-24900.0,0.00023103,2]
[341925518,1731293443879,-259.009825,0.0002336,2]
[341925519,1731293443888,-123767.27535147,0.000244,2]
[341925528,1731293446897,-320.0,0.000244,2]
[341925529,1731293448379,-546.24357432,0.000244,2]
[341925530,1731293448391,-47859.88481609,0.000244,2]
[341925531,1731293448406,-2428.74700082,0.000244,2]
[341925532,1731293448420,-33621.87732862,0.000244,2]
[341925533,1731293448431,-10131.61567315,0.000244,2]
[341925534,1731293448441,-8976.33086791,0.000244,2]
[341925535,1731293448452,-597.75201018,0.000244,2]
[341925537,1731293651325,164.642315,0.00013973,2]
[341925634,1731294419126,-300.0,0.00023339,2]
[341925635,1731294419148,-165.1579818,0.00023339,2]
[341925649,1731294576719,164.152321,0.00013973,2]
[341925669,1731294632808,-259.0098268,0.00023042,2]
[341925670,1731294632818,-211.07384214,0.00023239,2]
[341925693,1731294639160,-783.61709513,0.00023239,2]
[341925694,1731294639170,-300.0,0.00023339,2]
[341925695,1731294639179,-300.0,0.00023339,2]
[341925696,1731294639189,-175.789679,0.0002334,2]
[341925697,1731294639199,-432.37836655,0.0002334,2]
[341925698,1731294639212,-67.62163345,0.0002334,2]
[341925699,1731294639221,-500.0,0.0002334,2]
[341925700,1731294639231,-109.14410022,0.0002334,2]
[341925733,1731294644933,-390.85589978,0.0002334,2]
[341925734,1731294644942,-211.36910022,0.0002334,2]
[341925735,1731294644985,-51.6842202,0.0002334,2]
[341925736,1731294644998,-236.94667958,0.0002334,2]
[341925737,1731294645007,-953.1677321,0.00023345,2]
[341925738,1731294645017,-4698.45433256,0.00023584,2]
[341925752,1731294645185,-4154.01132474,0.00023584,2]
[341925847,1731295271405,163.70316,0.00013973,2]
[341925850,1731295723733,18803.46474308,0.0001,2]
[341925852,1731295727494,1000.0,0.0001,2]
[341925930,1731295831947,-2339.83994208,0.00023402,2]
[341925932,1731295831957,-300.0,0.00023432,2]
[341925934,1731295831966,-300.0,0.00023432,2]
[341925936,1731295831975,-2.61508508,0.00023433,2]
[341925993,1731295838062,-582.41753839,0.00023433,2]
[341925995,1731295839985,-20287.5,0.00023433,2]
[341925996,1731295839997,-4027.46737653,0.00023433,2]
[341925997,1731295840006,-210.6121667,0.0002346,2]
[341925998,1731295840017,-1000.0,0.000238,2]
[341925999,1731295840027,-1000.0,0.000242,3]
[341926000,1731295840036,-253.824272,0.000242,2]
[341926001,1731295840045,-153.0,0.000242,2]
[341926002,1731295840055,-153.0,0.000242,2]
[341926003,1731295840064,-159.43780623,0.000244,2]
[341926016,1731295843099,-963.928774,0.000241,2]
[341926017,1731295843110,-928.23976029,0.000241,2]
[341926018,1731295843119,-262.14652607,0.000244,2]
[341926019,1731295843130,-685.86763927,0.000244,2]
[341926020,1731295843265,-856.35798626,0.000244,2]
[341926021,1731295843276,-36405.11627029,0.000244,2]
[341926037,1731295845990,-73896.86028536,0.000244,2]
[341926039,1731295846002,-10480.0,0.000244,2]
[341926040,1731295846110,-3914.12570853,0.000244,2]
[341926042,1731296105489,162.943042,0.00013973,2]
[341926046,1731296751315,307.8374,0.0003135,30]
[341926047,1731296810023,162.621453,0.00013973,2]
[341926048,1731296826763,158.079,0.00028727,120]
[341926092,1731297032273,-166.287,0.00021476,2]
[341926094,1731297032282,-178.6575,0.00021549,2]
[341926096,1731297032292,-153.0,0.00022,2]
[341926098,1731297032301,-300.0,0.00022873,2]
[341926100,1731297032311,-300.0,0.00022873,2]
[341926102,1731297032320,-24900.0,0.00022874,2]
[341926104,1731297032330,-153.0,0.00023014,2]
[341926106,1731297032339,-6345.77417687,0.000231,2]
[341926228,1731297038442,-858.88871891,0.000231,2]
[341926251,1731297045191,-31759.05100212,0.000231,2]
[341926253,1731297045203,-27512.76235239,0.000231,2]
[341926371,1731297046491,-17643.53854507,0.000231,2]
[341926383,1731297047006,-9091.11693264,0.000231,2]
[341926387,1731297155804,150880.0,0.00027,60]
[341926390,1731297199248,1174.921,0.00025,120]
[341926391,1731297199292,307.0,0.00025,120]
[341926392,1731297199325,860.03,0.00025,120]
[341926393,1731297199347,860.63931864,0.00025,120]
[341926394,1731297199376,3836.40968136,0.00025,120]
[341926398,1731297221979,929.29701184,0.00027,120]
[341926399,1731297222003,70.70298816,0.00027,120]
[341926405,1731297242306,5000.0,0.00020844,2]
[341926406,1731297257645,5000.0,0.00020844,2]
[341926407,1731297263882,518.0,0.00027,60]
[341926408,1731297272597,5000.0,0.00020844,2]
[341926409,1731297287516,5000.0,0.00020844,2]
[341926410,1731297302936,5000.0,0.00020844,2]
[341926414,1731297318248,5000.0,0.00020844,2]
[341926415,1731297333192,193.54365277,0.00020844,2]
[341926416,1731297492569,326.857314,0.00013973,2]
[341926417,1731297492947,326.857314,0.00020447,2]
[341926419,1731297614150,5000.0,0.00020844,2]
[341926420,1731297629916,5000.0,0.00020844,2]
[341926421,1731297645638,5000.0,0.00020844,2]
[341926422,1731297660846,5000.0,0.00020844,2]
[341926423,1731297676553,5000.0,0.00020844,2]
[341926424,1731297693273,5000.0,0.00020844,2]
[341926425,1731297708870,5000.0,0.00020844,2]
[341926426,1731297724128,5000.0,0.00020844,2]
[341926427,1731297739685,752.05714633,0.00020844,2]
[341926439,1731297993843,467.24592402,0.00020844,2]
[341926449,1731298188431,1169.27083333,0.00021001,2]
[341926450,1731298228427,302.109702,0.00013973,2]
[341926451,1731298228634,302.109702,0.00020447,2]
[341926543,1731298238267,-566.3043233,0.00021068,2]
[341926622,1731298243163,-24333.6956767,0.00021068,2]
[341926623,1731298243172,-500.0,0.00021106,2]
[341926624,1731298243181,-500.0,0.00021106,2]
[341926625,1731298243190,-399.27258682,0.00021106,2]
[341926626,1731298243199,-2079.5944542,0.00021106,2]
[341926627,1731298243212,-250.0,0.00021219,2]
[341926628,1731298243221,-205.76604304,0.00021263,2]
[341926665,1731298686458,1169.27083333,0.00020844,2]
[341926667,1731298975680,320.875485,0.00013973,2]
[341926668,1731298975892,320.875485,0.00020447,2]
[341926669,1731298997500,1169.27083333,0.00020844,2]
[341926676,1731299196117,-1169.27083333,0.00020847,2]
[341926677,1731299196138,-783.14516759,0.00020934,2]
[341926678,1731299196160,-185.3,0.00021319,2]
[341926679,1731299196183,-418.0,0.00022,2]
[341926680,1731299196204,-300.0,0.00022084,2]
[341926681,1731299196232,-300.0,0.00022084,2]
[341926682,1731299196253,-3832.34052648,0.00022085,2]
[341926683,1731299294026,3459.95365858,0.000167,2]
[341926684,1731299301584,214.96423892,0.000123,2]
[341926685,1731299303758,3569.11408871,0.000125,2]
[341926687,1731299313535,1705.74715017,0.000176,2]
[341926688,1731299315043,14676.44751667,0.000134,2]
[341926689,1731299318119,273.52438296,0.0001,2]
[341926690,1731299318429,8647.12497702,0.0002,2]
[341926692,1731299324474,74149.78106366,0.00020377,2]
[341926693,1731299324886,1321.5952558,0.0002,2]
[341926694,1731299325535,1265.33626153,0.0001,2]
[341926696,1731299328575,4354.00858671,0.00015,2]
[341926733,1731299432687,-300.0,0.00022084,2]
[341926734,1731299432696,-160.20945636,0.00022084,2]
[341926735,1731299432707,-139.79054364,0.00022084,2]
[341926736,1731299432716,-16144.79108212,0.00022085,2]
[341926763,1731299438360,-1169.27083333,0.00020848,2]
[341926765,1731299438370,-1237.45247314,0.00022085,2]
[341926767,1731299438381,-1382.72882,0.00022085,2]
[341926783,1731299438523,-413.07882208,0.00022085,2]
[341926825,1731299443036,-1889.60827618,0.00022085,2]
[341926827,1731299443048,-778.987731,0.00022093,2]
[341926829,1731299443059,-581.97691617,0.00022149,2]
[341926830,1731299443070,-3639.08069553,0.00022161,2]
[341926831,1731299443083,-1119.99533147,0.00022161,2]
[341926832,1731299443102,-525.89442,0.00022161,2]
[341926833,1731299443115,-578.17,0.00022161,2]
[341926834,1731299443132,-792.083198,0.00022161,2]
[341926835,1731299443149,-569.091145,0.00022161,2]
[341926837,1731299443163,-441.68521,0.00022161,2]
[341926838,1731299443174,-149.81352,0.00022192,2]
[341926840,1731299443188,-268.18648,0.00022192,2]
[341926842,1731299443200,-118.607333,0.000222,2]
[341926847,1731299443500,-34.392667,0.000222,2]
[341926848,1731299443511,-153.0,0.000222,2]
[341926849,1731299443523,-153.0,0.000222,2]
[341926850,1731299443534,-153.0,0.000222,2]
[341926851,1731299443544,-184.879005,0.00022368,2]
[341926852,1731299443555,-98.17905327,0.000224,2]
[341926854,1731299443584,-54.82094673,0.000224,2]
[341926856,1731299443597,-153.0,0.000225,2]
[341926857,1731299443607,-153.0,0.000225,2]
[341926858,1731299443616,-153.0,0.000225,2]
[341926859,1731299443625,-153.0,0.000225,2]
[341926860,1731299443635,-153.0,0.000225,2]
[341926861,1731299443647,-153.0,0.000225,2]
[341926862,1731299443656,-153.0,0.000225,2]
[341926863,1731299443665,-153.0,0.000225,2]
[341926864,1731299443677,-153.0,0.000226,2]
[341926865,1731299443687,-153.0,0.000226,2]
[341926866,1731299443895,-155.4506982,0.000226,2]
[341926867,1731299443917,-153.0,0.000226,2]
[341926868,1731299443932,-400.6602712,0.000226,2]
[341926869,1731299443942,-778.987731,0.00022778,2]
[341926870,1731299443950,-153.0,0.000228,2]
[341926871,1731299443959,-418.0,0.00023014,2]
[341926872,1731299443968,-19912.78035288,0.000231,2]
[341926873,1731299443980,-3354.0523007,0.000231,2]
[341926874,1731299443991,-6873.06679102,0.000231,2]
[341926875,1731299444003,-366.88,0.000231,2]
[341926882,1731299446454,-769.75527375,0.000231,2]
[341926883,1731299446466,-15301.83262591,0.000231,2]
[341926884,1731299446478,-270.2525765,0.000231,2]
[341926885,1731299446490,-376.43919996,0.000231,2]
[341926891,1731299695492,296.726056,0.00013973,2]
[341926892,1731299695720,296.726056,0.00020447,2]
[341926893,1731299777113,35391.24,0.00020844,2]
[341926894,1731299928650,1169.27083333,0.00020844,2]
[341926902,1731300239796,1169.27083333,0.00020844,2]
[341926903,1731300318963,1011293.01937143,0.00031379,30]
[341926905,1731300475548,274.99157,0.00013973,2]
[341926906,1731300475755,274.99157,0.00020447,2]
[341926907,1731300550840,1169.27083333,0.00020844,2]
[341926908,1731300552578,655.0535796,0.00020844,2]
[341927054,1731300862577,1169.27083333,0.00020844,2]
[341927056,1731301088566,-3441.92003088,0.00024533,30]
[341927057,1731301088794,-3070.51996912,0.00027,30]
[341927058,1731301089043,-1929.48003088,0.00027,30]
[341927059,1731301089065,-1116.15993824,0.00027,30]
[341927060,1731301165761,255.430533,0.00013973,2]
[341927061,1731301165959,255.430533,0.00020447,2]
[341927062,1731301174445,1169.27083333,0.00020844,2]
[341927064,1731301326653,2339.83994208,0.00020593,2]
[341927068,1731301485492,1169.27083333,0.00020844,2]
[341927069,1731301499006,194.6583682,0.00020744,2]
[341927076,1731301796549,1169.27083333,0.00020844,2]
[341927209,1731301839204,-544.19082374,0.00020844,2]
[341927219,1731301840575,-625.08000959,0.00020844,2]
[341927220,1731301840585,-176.853412,0.00021093,2]
[341927221,1731301840594,-6571.0,0.00021886,2]
[341927222,1731301840604,-166.666666,0.00021918,2]
[341927223,1731301840613,-300.0,0.00021966,2]
[341927224,1731301840622,-300.0,0.00021966,2]
[341927225,1731301840632,-24900.0,0.00021967,2]
[341927226,1731301840641,-262.0,0.00022,2]
[341927227,1731301840651,-166.287,0.00022075,2]
[341927228,1731301840660,-471.38342244,0.00022094,2]
[341927229,1731301840669,-262.0,0.00022192,2]
[341927230,1731301840678,-184.879006,0.00022208,2]
[341927231,1731301840687,-333.42264,0.00022422,2]
[341927232,1731301840697,-161.0,0.00023,2]
[341927233,1731301840707,-262.0,0.00023014,2]
[341927234,1731301840716,-854.80133985,0.00023099,2]
[341927235,1731301840725,-150.01,0.00023099,2]
[341927236,1731301840734,-4721.19234933,0.00023099,2]
[341927237,1731301840743,-34396.19526574,0.000231,2]
[341927254,1731301843631,-13.3684404,0.000231,2]
[341927279,1731301932468,245.886635,0.00013973,2]
[341927280,1731301932701,245.886635,0.00020447,2]
[341927284,1731302171895,1169.27083333,0.00020844,2]
[341927285,1731302296072,155.1,0.00020844,2]
[341927479,1731302483549,1169.27083333,0.00020844,2]
[341927488,1731302643252,221.297971,0.00013973,2]
[341927489,1731302643691,221.297971,0.00020447,2]
[341927494,1731302794998,1169.27083333,0.00020844,2]
[341927607,1731303031801,-1169.27083333,0.00020844,2]
[341927609,1731303031814,-163.0,0.00022,2]
[341927648,1731303031984,-161.0,0.00022,2]
[341927651,1731303031994,-163.0,0.00022192,2]
[341927654,1731303032003,-210.1073501,0.00022256,2]
[341927657,1731303032012,-424.636663,0.0002234,2]
[341927660,1731303032022,-4502.1811007,0.00022416,2]
[341927663,1731303032031,-300.0,0.00022488,2]
[341927666,1731303032042,-300.0,0.00022488,2]
[341927669,1731303032051,-3048.4744046,0.00022489,2]
[341927673,1731303032061,-163.0,0.00023014,2]
[341927676,1731303032071,-424.636663,0.00023025,2]
[341927678,1731303032080,-150.01,0.00023099,2]
[341927682,1731303032090,-3934.32695777,0.00023099,2]
[341927684,1731303032099,-32.84985154,0.000231,2]
[341927691,1731303032134,-407414.99999975,0.000231,2]
[341927758,1731303032570,-743.594604,0.000231,2]
[341927802,1731303037813,-3278.60579814,0.00023099,2]
[341927805,1731303037823,-2406.78857185,0.000231,2]
[341927812,1731303037929,-1395.15094067,0.000231,2]
[341928148,1731303043029,-4864.72780863,0.000231,2]
[341928149,1731303043041,-670.90132994,0.000231,2]
[341928189,1731303110466,216.5,0.00027,60]
[341928204,1731303343062,199.168173,0.00013973,2]
[341928205,1731303343107,199.168173,0.00020447,2]
[341928206,1731303417183,1169.27083333,0.00020844,2]
[341928217,1731303730610,1169.27083333,0.00020844,2]
[341928218,1731303733101,296.0,0.00020844,2]
[341928221,1731303929486,3441.92003088,0.0002,30]
[341928222,1731303929510,2273.80481736,0.0002,30]
[341928225,1731304042593,1169.27083333,0.00020844,2]
[341928226,1731304117862,179.251355,0.00013973,2]
[341928227,1731304118972,179.251355,0.00020447,2]
[341928255,1731304232027,-578.17903017,0.00020844,2]
[341928282,1731304237998,-266.47535616,0.00020844,2]
[341928283,1731304238010,-324.616447,0.00020844,2]
[341928284,1731304238020,-465.31917112,0.00022039,2]
[341928285,1731304238030,-212.318331,0.00022716,2]
[341928286,1731304238047,-300.0,0.0002285,2]
[341928287,1731304238057,-300.0,0.0002285,2]
[341928288,1731304238066,-665.47506529,0.00022851,2]
[341928330,1731304243166,-15776.38237962,0.00022851,2]
[341928371,1731304246132,-2138.18949998,0.00022851,2]
[341928672,1731304514781,10000.0,0.00027,60]
[341928678,1731304607623,178.0,0.00025,120]
[341928679,1731304675642,1169.27083333,0.00020844,2]
[341928687,1731304867348,169.687064,0.00013973,2]
[341928688,1731304867554,169.687064,0.00020447,2]
[341928691,1731304987872,1169.27083333,0.00020844,2]
[341928698,1731305152911,311.6338257,0.0001,2]
[341928700,1731305299816,1169.27083333,0.00020844,2]
[341928754,1731305432521,-1169.27083333,0.00020844,2]
[341928755,1731305432530,-8491.32567323,0.00021727,2]
[341928756,1731305432541,-8060.0,0.00021727,2]
[341928757,1731305432554,-807.83,0.00021727,2]
[341928758,1731305432565,-411.26432619,0.00021727,2]
[341928764,1731305438213,-3206.62075376,0.00021727,2]
[341928765,1731305438313,-3922.95924682,0.00021727,2]
[341928766,1731305438323,-6952.0,0.00021886,2]
[341928767,1731305438332,-162.0,0.00022,2]
[341928768,1731305438341,-164.619,0.00022148,2]
[341928769,1731305438351,-212.318331,0.00022242,2]
[341928770,1731305438361,-300.0,0.00022455,2]
[341928771,1731305438370,-300.0,0.00022455,2]
[341928772,1731305438379,-152.68874941,0.00023,2]
[341928773,1731305438388,-162.0,0.00023014,2]
[341928774,1731305438397,-150.01,0.00023099,2]
[341928775,1731305438407,-2732.17149845,0.00023099,2]
[341928776,1731305438416,-20637.14671817,0.000231,2]
[341928789,1731305440236,-1546.78600054,0.000231,2]
[341928790,1731305440266,-7472.61096232,0.000231,2]
[341928834,1731305443260,-1876.97731866,0.000231,2]
[341928941,1731305551027,-1169.27083333,0.00020844,2]
[341928948,1731305802154,169.447125,0.00013973,2]
[341928949,1731305802382,169.447125,0.00020447,2]
[341928983,1731306232894,1169.27083333,0.00020844,2]
[341928996,1731306518279,674.59924788,0.0002,2]
[341928997,1731306526519,4327.1328142,0.00031365,30]
[341929001,1731306544795,1169.27083333,0.00020844,2]
[341929157,1731306639059,-941.9180235,0.00020988,2]
[341929158,1731306639071,-227.35280983,0.00020988,2]
[341929159,1731306639081,-316.756451,0.00021635,2]
[341929160,1731306639090,-180.3927066,0.00021725,2]
[341929161,1731306639100,-300.0,0.00021743,2]
[341929162,1731306639110,-300.0,0.00021743,2]
[341929163,1731306639119,-9397.29532966,0.00021744,2]
[341929168,1731306640214,-5478.89260179,0.00021744,2]
[341929169,1731306640226,-262.55617097,0.00021744,2]
[341929172,1731306640299,-453.40201646,0.00021744,2]
[341929183,1731306643321,-712.71200662,0.00021744,2]
[341929184,1731306643330,-203.82675,0.00021883,2]
[341929185,1731306643339,-174.21825,0.00021883,2]
[341929186,1731306643349,-169.385966,0.00021918,2]
[341929187,1731306643359,-812.36392991,0.00021984,2]
[341929188,1731306643368,-163.0,0.00022,2]
[341929189,1731306643378,-316.756451,0.0002232,2]
[341929190,1731306643388,-152.0,0.00022815,2]
[341929191,1731306643397,-398.77750581,0.00022905,2]
[341929192,1731306643413,-3017.20717087,0.00022905,2]
[341929193,1731306643422,-187.95,0.0002299,2]
[341929194,1731306643431,-922.03386256,0.00023,2]
[341929195,1731306643440,-70357.0,0.00023,2]
[341929196,1731306643449,-316.756451,0.00023005,2]
[341929197,1731306643458,-482.3681965,0.00023083,2]
[341929198,1731306643467,-223.82518262,0.00023099,2]
[341929199,1731306643476,-2276.80958204,0.00023099,2]
[341929200,1731306643485,-34585.78909535,0.000231,2]
[341929227,1731306646404,-300.0,0.000231,2]
[341929236,1731306646576,-777.48848161,0.000231,2]
[341929269,1731306672923,160.528855,0.00013973,2]
[341929270,1731306673019,160.528855,0.00020807,2]
[341929276,1731306890397,261.68020875,0.00020844,2]
[341929282,1731307166986,1169.27083333,0.00020844,2]
[341929288,1731307479299,1169.27083333,0.00020844,2]
[341929289,1731307497323,160.642118,0.00013973,2]
[341929291,1731307711174,508.672085,0.00027,60]
[341929299,1731307791362,1169.27083333,0.00020844,2]
[341929421,1731307833247,-1169.27083333,0.00020855,2]
[341929423,1731307833258,-72.09783051,0.00021209,2]
[341929493,1731307838559,-88.54428749,0.00021209,2]
[341929495,1731307838568,-211.2105,0.00021883,2]
[341929497,1731307838578,-155.43632305,0.00022,2]
[341929499,1731307838587,-882.33925637,0.00022211,2]
[341929691,1731307840463,-1918.8363124,0.00022211,2]
[341930021,1731307843835,-428.9762177,0.00022211,2]
[341930023,1731307843847,-4809.84821353,0.00022211,2]
[341930025,1731307843856,-300.0,0.00022732,2]
[341930027,1731307843866,-300.0,0.00022732,2]
[341930029,1731307843876,-4672.79139112,0.00022916,2]
[341930031,1731307843885,-261.0,0.00023,3]
[341930033,1731307843895,-298.0,0.00023,7]
[341930035,1731307843905,-1897.34131837,0.00023099,2]
[341930037,1731307843915,-7366.91468685,0.000231,2]
[341931083,1731308097959,-200.0,0.0002343,10]
[341931084,1731308097983,-800.0,0.00024,24]
[341931085,1731308166300,1169.27083333,0.00020844,2]
[341931086,1731308252867,160.755381,0.00013973,2]
[341931093,1731308694789,1169.27083333,0.00020844,2]
[341931107,1731308917097,160.755381,0.00013973,2]
[341931112,1731309007077,1169.27083333,0.00020844,2]
[341931144,1731309032781,-1169.27083333,0.00020844,2]
[341931146,1731309032791,-815.39258047,0.0002189,2]
[341931148,1731309032802,-6035.60741953,0.0002189,2]
[341931150,1731309032812,-216.33,0.00021894,2]
[341931152,1731309032823,-160.755381,0.00022174,2]
[341931154,1731309032832,-300.0,0.00022796,2]
[341931156,1731309032842,-2048.33492114,0.00022797,2]
[341931158,1731309032851,-1581.11776531,0.00023099,2]
[341931161,1731309032860,-6698.5533542,0.000231,2]
[341931481,1731309040688,-1976.11595178,0.000231,2]
[341931572,1731309043814,-4045.0,0.000231,2]
[341931581,1731309044013,-2140.9,0.000231,2]
[341931633,1731309210073,158.37,0.0001521,2]
[341931634,1731309213450,158.385,0.0001569,60]
[341931635,1731309213976,158.667,0.0001632,24]
[341931637,1731309383014,1169.27083333,0.00020844,2]
[341931643,1731309654728,160.876194,0.00013973,2]
[341931644,1731309695045,1169.27083333,0.00020844,2]
[341931652,1731309956044,1805.53339598,0.00031364,30]
[341931653,1731310006294,1169.27083333,0.00020844,2]
[341931690,1731310233227,-1169.27083333,0.0002157,2]
[341931691,1731310233236,-216.9675,0.00021856,2]